bitfinex/quotes_BTCUSD_20240605
["timestamp","ask_amount","ask_price","bid_price","bid_amount"]
[1717562057416,0.00862,71096.0,71082.0,1.32163083]
[1717562058420,0.00862,71096.0,71082.0,1.32157207]
[1717562058867,0.00862,71096.0,71082.0,1.28683093]
[1717562059078,0.00862,71096.0,71082.0,1.27283093]
[1717562059280,0.00862,71096.0,71082.0,1.30064401]
[1717562059482,0.00862,71096.0,71082.0,1.31464401]
[1717562059657,0.00862,71096.0,71082.0,1.32864401]
[1717562059864,0.00862,71096.0,71082.0,1.28683093]
[1717562060086,0.00862,71096.0,71082.0,1.27283093]
[1717562060485,0.00862,71096.0,71082.0,1.28683093]
[1717562062428,0.00862,71096.0,71082.0,1.00546593]
[1717562065109,0.00862,71096.0,71082.0,1.0219543]
[1717562065520,0.00862,71096.0,71082.0,1.0079543]
[1717562065648,0.00862,71096.0,71082.0,1.0219543]
[1717562066086,0.00862,71096.0,71082.0,1.0079543]
[1717562066526,0.00862,71096.0,71082.0,1.0219543]
[1717562067994,0.00862,71096.0,71082.0,1.3033193]
[1717562068187,0.00862,71096.0,71082.0,1.37625452]
[1717562068595,0.00862,71096.0,71082.0,1.47625452]
[1717562070010,0.00862,71096.0,71082.0,1.51802497]
[1717562070226,0.00862,71096.0,71082.0,1.7993653]
[1717562070374,0.00862,71096.0,71082.0,1.53891019]
[1717562070895,0.00862,71096.0,71082.0,1.84116042]
[1717562071915,0.00862,71096.0,71082.0,1.86204564]
[1717562072333,0.00862,71096.0,71082.0,1.84804564]
[1717562072538,0.00862,71096.0,71082.0,1.86189326]
[1717562073007,0.00862,71096.0,71082.0,1.84789326]
[1717562073217,0.00862,71096.0,71082.0,1.83389326]
[1717562073556,0.00862,71096.0,71082.0,1.86189326]
[1717562073880,0.00862,71096.0,71082.0,1.74360362]
[1717562074078,0.00862,71096.0,71082.0,1.84786833]
[1717562074320,0.00862,71096.0,71082.0,1.86184825]
[1717562074540,0.00862,71096.0,71082.0,1.74360362]
[1717562074784,0.00862,71096.0,71082.0,1.72960362]
[1717562074996,0.00862,71096.0,71082.0,1.74360362]
[1717562075640,0.00862,71096.0,71082.0,1.72960362]
[1717562076030,0.00862,71096.0,71082.0,1.74360362]
[1717562076615,0.00862,71096.0,71082.0,1.75760362]
[1717562076987,0.00862,71096.0,71082.0,1.84097846]
[1717562077171,0.00862,71096.0,71082.0,1.85497846]
[1717562077391,0.00862,71096.0,71082.0,1.77160362]
[1717562077769,0.00862,71096.0,71082.0,1.83410203]
[1717562077998,0.00862,71096.0,71082.0,1.77160362]
[1717562078211,0.00862,71096.0,71082.0,1.53930362]
[1717562078432,0.1642,71093.0,71082.0,1.21987362]
[1717562078851,0.1642,71093.0,71082.0,0.69520862]
[1717562078852,0.07222824,71092.0,71082.0,0.69520862]
[1717562079054,0.07222824,71092.0,71082.0,0.59520862]
[1717562079347,0.07222824,71092.0,71082.0,0.58120862]
[1717562079558,0.1642,71093.0,71082.0,0.49520862]
[1717562079773,0.1642,71093.0,71082.0,0.84857362]
[1717562080003,0.1642,71093.0,71082.0,0.94447362]
[1717562080361,0.1642,71093.0,71082.0,0.93047362]
[1717562080560,0.1642,71093.0,71082.0,1.04447362]
[1717562080785,0.1642,71093.0,71082.0,1.03047362]
[1717562080984,0.1642,71093.0,71082.0,1.01647362]
[1717562081203,0.1642,71093.0,71082.0,1.04447362]
[1717562081827,0.1642,71093.0,71082.0,1.03047362]
[1717562082072,0.1642,71093.0,71082.0,1.04447362]
[1717562084069,0.1642,71093.0,71082.0,1.1333543]
[1717562084295,0.1642,71093.0,71082.0,1.20628437]
[1717562084953,0.1642,71093.0,71082.0,1.48764937]
[1717562084954,0.1505,71093.0,71082.0,1.48764937]
[1717562085405,0.1505,71093.0,71082.0,1.41914937]
[1717562085638,0.1505,71093.0,71082.0,1.48764937]
[1717562088375,0.1505,71093.0,71082.0,1.52931148]
[1717562089181,0.1505,71093.0,71082.0,1.48764937]
[1717562090361,0.1505,71093.0,71082.0,1.55013306]
[1717562090978,0.1506,71090.0,71082.0,1.30643306]
[1717562091183,0.1506,71094.0,71082.0,1.34294937]
[1717562093857,0.1506,71094.0,71082.0,1.44745394]
[1717562094479,0.1506,71094.0,71082.0,1.34294695]
[1717562097203,0.1506,71094.0,71082.0,1.44294695]
[1717562097854,0.00862,71096.0,71082.0,1.36694695]
[1717562098179,0.1509,71086.0,71082.0,1.36694695]
[1717562098571,0.1509,71086.0,71082.0,1.26694695]
[1717562098742,0.1509,71086.0,71082.0,1.36694695]
[1717562102593,0.1516,71085.0,71082.0,1.36694695]
[1717562104102,0.00862,71083.0,71082.0,1.44924695]
[1717562106418,0.00862,71083.0,71082.0,1.44924801]
[1717562106838,0.00862,71083.0,71082.0,1.36694801]
[1717562107061,0.00862,71083.0,71082.0,0.90688301]
[1717562107383,0.25282,71083.0,71082.0,0.80688301]
[1717562107519,0.25282,71083.0,71082.0,0.87538301]
[1717562107721,0.2590083,71083.0,71082.0,0.87538301]
[1717562108518,0.25282,71083.0,71082.0,0.87538301]
[1717562108752,0.25897814,71083.0,71082.0,0.87538301]
[1717562108946,0.25282,71083.0,71082.0,0.95922729]
[1717562109152,0.25282,71083.0,71082.0,1.05922729]
[1717562109354,0.25897961,71083.0,71082.0,1.06972704]
[1717562109603,0.25897961,71083.0,71082.0,1.04522729]
[1717562109967,0.25897961,71083.0,71082.0,1.06972604]
[1717562110167,0.25897961,71083.0,71082.0,0.77436104]
[1717562110349,0.25897961,71083.0,71082.0,0.69051676]
[1717562110556,0.25897961,71083.0,71082.0,0.70451676]
[1717562111209,0.25897961,71083.0,71082.0,0.56009783]
[1717562111641,0.25897961,71083.0,71082.0,0.61247178]
[1717562111800,0.25282,71083.0,71082.0,0.61247178]
[1717562112008,0.25282,71083.0,71082.0,0.54959908]
[1717562112209,0.25282,71083.0,71082.0,0.56009783]
[1717562112528,0.25282,71083.0,71082.0,0.54959908]
[1717562112980,0.00862,71083.0,71082.0,0.98559226]
[1717562113894,0.00862,71083.0,71082.0,1.46695726]
[1717562114113,0.00862,71083.0,71082.0,1.73225726]
[1717562114317,0.00862,71083.0,71082.0,1.80075726]
[1717562114982,1e-08,71083.0,71082.0,1.82273644]
[1717562117616,1e-08,71083.0,71082.0,1.87030144]
[1717562117820,1e-08,71083.0,71082.0,2.11120144]
[1717562118397,1e-08,71083.0,71082.0,2.29687239]
[1717562118802,1e-08,71083.0,71082.0,2.28287239]
[1717562119203,1e-08,71083.0,71082.0,2.29657541]
[1717562119799,1e-08,71083.0,71082.0,2.28257541]
[1717562120031,1e-08,71083.0,71082.0,2.29657541]
[1717562120231,1e-08,71083.0,71082.0,2.11118202]
[1717562120458,1e-08,71083.0,71082.0,2.29658095]
[1717562120811,1e-08,71083.0,71082.0,2.11118202]
[1717562121339,0.002,71089.0,71088.0,1.094893]
[1717562121514,0.002,71089.0,71088.0,1.67613222]
[1717562121695,0.00862,71096.0,71095.0,0.713482]
[1717562121696,0.00562,71096.0,71095.0,0.713482]
[1717562121897,0.00562,71096.0,71095.0,1.04940093]
[1717562122276,0.00562,71096.0,71095.0,1.38490093]
[1717562122698,0.00562,71096.0,71095.0,1.28490093]
[1717562122903,0.00562,71096.0,71095.0,1.38490093]
[1717562123265,0.00562,71096.0,71095.0,1.29890093]
[1717562123459,0.00562,71096.0,71095.0,1.39890093]
[1717562123940,0.00562,71096.0,71095.0,1.39760093]
[1717562124153,0.00562,71096.0,71095.0,1.67891393]
[1717562124360,0.00562,71096.0,71095.0,1.80446348]
[1717562124530,0.00562,71096.0,71095.0,1.67891393]
[1717562124731,0.1,71119.0,71095.0,1.67891393]
[1717562124732,0.1642,71127.0,71108.0,1.537517]
[1717562124933,0.1642,71127.0,71108.0,1.88775622]
[1717562125912,0.1642,71127.0,71108.0,1.90175622]
[1717562126206,0.1642,71127.0,71108.0,1.93410317]
[1717562126402,0.002,71129.0,71111.0,1.094575]
[1717562126516,0.002,71129.0,71111.0,1.66779393]
[1717562126721,0.002,71129.0,71111.0,1.74007392]
[1717562127566,0.002,71129.0,71116.0,1.484505]
[1717562127756,0.002,71129.0,71128.0,0.431974]
[1717562128093,0.002,71129.0,71128.0,0.92630368]
[1717562128267,0.002,71129.0,71128.0,0.82630368]
[1717562128671,0.002,71129.0,71128.0,0.92630368]
[1717562129268,0.002,71129.0,71128.0,0.89621322]
[1717562129495,0.002,71129.0,71128.0,1.05781322]
[1717562129696,0.002,71129.0,71128.0,0.94381322]
[1717562130124,0.0001697,71139.0,71137.0,1.532414]
[1717562130125,0.15443506,71138.0,71137.0,1.532414]
[1717562130369,0.15443506,71138.0,71137.0,1.86833293]
[1717562130572,0.1358127,71138.0,71137.0,1.97478334]
[1717562130721,0.1358127,71138.0,71137.0,1.91242339]
[1717562130938,0.1358127,71138.0,71137.0,1.97478422]
[1717562131137,0.1358127,71138.0,71137.0,2.01768864]
[1717562131337,0.1358127,71138.0,71137.0,1.9968639]
[1717562131964,0.1358127,71138.0,71137.0,2.0989639]
[1717562132376,0.1358127,71138.0,71137.0,1.76262781]
[1717562132558,0.1358127,71138.0,71137.0,1.32802939]
[1717562132723,0.1358127,71138.0,71137.0,1.28393893]
[1717562133136,0.1358127,71138.0,71137.0,1.57908593]
[1717562133328,0.1358127,71138.0,71137.0,1.83463342]
[1717562133619,0.1358127,71138.0,71137.0,1.82063342]
[1717562133798,0.1358127,71138.0,71137.0,1.80663342]
[1717562134009,0.1358127,71138.0,71137.0,1.85125656]
[1717562134377,0.1358127,71138.0,71137.0,1.83725656]
[1717562134579,0.1358127,71138.0,71137.0,1.85125656]
[1717562135207,0.1358127,71138.0,71137.0,1.83725656]
[1717562135615,0.1358127,71138.0,71137.0,1.85125656]
[1717562138311,0.1358127,71138.0,71137.0,1.59570907]
[1717562138516,0.1358127,71138.0,71137.0,1.62895407]
[1717562141261,0.1358127,71138.0,71137.0,1.78385407]
[1717562141621,0.1358127,71138.0,71137.0,2.06500107]
[1717562143631,0.1366727,71138.0,71137.0,2.06500107]
[1717562144388,0.1366727,71138.0,71137.0,1.50467516]
[1717562144597,0.1366727,71138.0,71137.0,1.34780707]
[1717562144798,0.1429482,71138.0,71137.0,1.34780707]
[1717562145178,0.1429482,71138.0,71137.0,1.62895407]
[1717562145379,0.1366727,71138.0,71137.0,1.61495407]
[1717562145622,0.1366727,71138.0,71137.0,1.61233093]
[1717562146181,0.2159727,71138.0,71137.0,0.56923693]
[1717562146461,0.22222385,71138.0,71137.0,0.90433893]
[1717562146830,0.22222385,71138.0,71137.0,0.89033893]
[1717562147102,0.22222385,71138.0,71137.0,0.89413893]
[1717562147305,0.22222385,71138.0,70983.0,0.31027095]
[1717562147515,0.22222385,71138.0,71137.0,0.240573]
[1717562147901,0.22222385,71138.0,71137.0,0.254573]
[1717562148094,0.22222385,71138.0,71137.0,0.240573]
[1717562148540,0.22222385,71138.0,71137.0,0.268573]
[1717562149083,0.22222385,71138.0,71137.0,0.254573]
[1717562149324,0.22222385,71138.0,71137.0,0.41299193]
[1717562151229,0.14292385,71138.0,71137.0,0.69413893]
[1717562151556,0.1366727,71138.0,71137.0,0.69413893]
[1717562152078,0.14290121,71138.0,71137.0,0.69413893]
[1717562152435,0.1366727,71138.0,71137.0,0.97528593]
[1717562152638,0.1366727,71138.0,71137.0,1.05378593]
[1717562153718,0.1366727,71138.0,71137.0,1.03978593]
[1717562154104,0.1376727,71138.0,71137.0,1.05378593]
[1717562154341,0.1376727,71138.0,71137.0,1.02578593]
[1717562154684,0.1396727,71138.0,71137.0,1.04278593]
[1717562155291,0.1386727,71138.0,71137.0,0.68013893]
[1717562155516,0.1396727,71138.0,71137.0,0.96428593]
[1717562155718,0.14604721,71138.0,71137.0,1.32293293]
[1717562155967,0.06071164,71138.0,71137.0,1.32293293]
[1717562156121,0.06071164,71138.0,71137.0,1.39516117]
[1717562156323,0.06071164,71138.0,71137.0,1.32293293]
[1717562156701,0.06071164,71138.0,71137.0,1.36432785]
[1717562156905,0.06071164,71138.0,71137.0,1.32293293]
[1717562158349,0.06071164,71138.0,71137.0,1.36437575]
[1717562158555,0.06071164,71138.0,71137.0,1.32293293]
[1717562159155,0.06071164,71138.0,71137.0,1.36437575]
[1717562159373,0.06071164,71138.0,71137.0,1.32293293]
[1717562159572,0.06071164,71138.0,71137.0,1.10395016]
[1717562159839,0.06071164,71138.0,71137.0,1.04178593]
[1717562160421,0.06071164,71138.0,71137.0,0.85373893]
[1717562161189,0.22001164,71138.0,71137.0,0.40199193]
[1717562161496,0.22642344,71138.0,71137.0,0.30199193]
[1717562162858,0.22542344,71138.0,71137.0,0.29899193]
[1717562163035,0.22642344,71138.0,71137.0,0.31299193]
[1717562163241,0.22642344,71138.0,71137.0,0.41299193]
[1717562163381,0.22442344,71138.0,71137.0,0.39899193]
[1717562163825,0.22542344,71138.0,71137.0,0.41299193]
[1717562164594,0.06612344,71138.0,71137.0,0.41299193]
[1717562164833,0.06612344,71138.0,71137.0,0.69413893]
[1717562165020,0.05871164,71138.0,71137.0,0.68013893]
[1717562165173,0.05971164,71138.0,71137.0,0.69413893]
[1717562165374,0.05971164,71138.0,71137.0,0.75643705]
[1717562166193,0.05971164,71138.0,71137.0,0.77720309]
[1717562167199,0.05971164,71138.0,71137.0,0.79796913]
[1717562167579,0.05971164,71138.0,71137.0,0.69413893]
[1717562168004,0.05971164,71138.0,71137.0,0.86473893]
[1717562168255,0.05971164,71138.0,71137.0,0.69413893]
[1717562168462,0.05971164,71138.0,71137.0,0.86473893]
[1717562169756,0.13881164,71138.0,71137.0,0.58359193]
[1717562169936,0.29661164,71138.0,71137.0,0.268573]
[1717562170499,0.3029273,71138.0,71137.0,0.268573]
[1717562171319,0.3029273,71138.0,71137.0,0.37280755]
[1717562171525,0.3029273,71138.0,71137.0,0.268573]
[1717562171757,0.3029273,71138.0,71137.0,0.128]
[1717562171964,0.3029273,71138.0,71137.0,0.21148627]
[1717562173089,0.5229273,71138.0,71137.0,0.128]
[1717562173504,0.5229273,71138.0,71137.0,0.19065738]
[1717562173711,0.5229273,71138.0,71137.0,0.09065738]
[1717562173911,0.51661164,71138.0,71137.0,0.09065738]
[1717562174112,0.51661164,71138.0,71137.0,0.028]
[1717562174307,0.52284846,71138.0,71137.0,0.028]
[1717562174957,0.62284846,71138.0,71137.0,0.028]
[1717562175258,0.77341946,71138.0,71137.0,0.028]
[1717562175496,0.76241946,71138.0,71137.0,0.014]
[1717562175699,0.4609,71130.0,71129.0,0.1]
[1717562175904,0.4609,71130.0,71124.0,0.01432029]
[1717562176052,0.3807,71129.0,71128.0,0.04177836]
[1717562176252,0.4619,71128.0,71127.0,0.1]
[1717562176454,0.4619,71127.0,71126.0,0.04177836]
[1717562176855,0.3833,71126.0,71125.0,0.04177836]
[1717562177056,0.22,71125.0,71124.0,0.11432029]
[1717562177483,0.22615349,71125.0,71124.0,0.01432029]
[1717562177864,0.56795349,71125.0,71124.0,0.01432029]
[1717562178067,0.702397,71125.0,71124.0,0.01432029]
[1717562178797,0.703397,71125.0,71124.0,0.02832029]
[1717562179400,0.703397,71125.0,71124.0,0.02732029]
[1717562179757,0.703397,71125.0,71124.0,0.01432029]
[1717562180668,0.704397,71125.0,71124.0,0.02132029]
[1717562180877,0.714397,71125.0,71124.0,0.007]
[1717562181087,0.714397,71125.0,71124.0,0.014]
[1717562181088,0.715397,71125.0,71124.0,0.014]
[1717562181289,0.714397,71125.0,71124.0,0.007]
[1717562181519,0.07222824,71134.0,71108.0,0.01432029]
[1717562181520,0.4653,71111.0,71108.0,0.01432029]
[1717562181678,0.4653,71111.0,71109.0,0.023]
[1717562181883,0.4653,71111.0,71110.0,0.07291141]
[1717562182089,0.4653,71111.0,71110.0,0.09591141]
[1717562182451,0.4653,71111.0,71110.0,0.123]
[1717562182883,0.2453,71111.0,71110.0,0.123]
[1717562183033,0.2463,71111.0,71110.0,0.20791106]
[1717562183238,0.2463,71111.0,71110.0,0.135]
[1717562183440,0.4663,71111.0,71110.0,0.035]
[1717562183819,0.2463,71111.0,71110.0,0.035]
[1717562184408,0.2473,71111.0,71110.0,0.049]
[1717562184649,0.2473,71111.0,71110.0,0.12190769]
[1717562184848,0.2473,71111.0,71110.0,0.22190769]
[1717562185459,0.002,71111.0,71110.0,0.50695362]
[1717562185663,0.002,71111.0,71110.0,0.60464593]
[1717562185943,0.002,71111.0,71110.0,0.67755481]
[1717562186277,0.002,71111.0,71110.0,1.24006281]
[1717562187280,0.001,71111.0,71110.0,1.30326281]
[1717562187486,0.002,71111.0,71110.0,1.31726281]
[1717562187987,0.001,71111.0,71110.0,1.34700168]
[1717562188232,0.001,71111.0,71110.0,1.36088285]
[1717562188438,0.001,71111.0,71110.0,1.31926281]
[1717562188797,0.001,71111.0,71110.0,1.50926281]
[1717562189050,0.001,71111.0,71110.0,1.67366281]
[1717562189197,0.001,71111.0,71110.0,1.73627112]
[1717562189399,0.001,71111.0,71110.0,1.67366281]
[1717562190032,0.001,71111.0,71110.0,1.75714055]
[1717562190480,0.1567,71134.0,71133.0,0.14058]
[1717562191649,0.1567,71134.0,71133.0,0.15458]
[1717562191852,0.1567,71134.0,71133.0,0.16858]
[1717562192280,0.05771164,71138.0,71137.0,0.140573]
[1717562192484,0.05771164,71138.0,71137.0,0.240573]
[1717562193515,0.05771164,71138.0,71137.0,0.254573]
[1717562194237,0.05771164,71138.0,71137.0,0.53572]
[1717562194717,0.05771164,71138.0,71137.0,0.54972]
[1717562196074,0.05771164,71138.0,71137.0,0.55872]
[1717562196284,0.05771164,71138.0,71137.0,0.54472]
[1717562196452,0.05771164,71138.0,71137.0,0.55872]
[1717562196659,0.05771164,71138.0,71137.0,0.57272]
[1717562197827,0.06387514,71138.0,71137.0,0.57272]
[1717562199252,0.06387514,71138.0,71137.0,0.71713893]
[1717562199492,0.05771164,71138.0,71137.0,0.71713893]
[1717562200190,0.05651929,71138.0,71137.0,0.71713893]
[1717562200949,0.05651929,71138.0,71137.0,0.70313893]
[1717562201114,0.05651929,71138.0,71137.0,0.68913893]
[1717562201319,0.05651929,71138.0,71137.0,0.70313893]
[1717562201512,0.05651929,71138.0,71137.0,0.71713893]
[1717562203424,0.04354629,71138.0,71137.0,0.71713893]
[1717562203632,0.04354629,71138.0,71137.0,0.291573]
[1717562204017,0.04970167,71138.0,71137.0,0.291573]
[1717562206328,0.28880167,71138.0,71137.0,0.291573]
[1717562206469,0.28264629,71138.0,71137.0,0.291573]
[1717562208027,0.50264629,71138.0,71137.0,0.128]
[1717562208166,0.50264629,71138.0,71137.0,0.028]
[1717562208774,0.50264629,71138.0,71137.0,0.014]
[1717562208991,0.50264629,71138.0,71137.0,0.028]
[1717562209623,0.28264629,71138.0,71137.0,0.028]
[1717562209983,0.48264629,71138.0,71137.0,0.154573]
[1717562210190,0.28264629,71138.0,71137.0,0.254573]
[1717562210397,0.28264629,71138.0,71137.0,0.268573]
[1717562211031,0.50264629,71138.0,71137.0,0.128]
[1717562211251,0.60264629,71138.0,71137.0,0.028]
[1717562211572,0.70264629,71138.0,71137.0,0.028]
[1717562212344,0.84321729,71138.0,71137.0,0.028]
[1717562212534,0.70264629,71138.0,71137.0,0.014]
[1717562212821,0.70264629,71138.0,71137.0,0.018]
[1717562213312,0.70264629,71138.0,71137.0,0.004]
[1717562213517,0.84321729,71138.0,71137.0,0.007]
[1717562214083,0.84321729,71138.0,71137.0,0.004]
[1717562214340,0.84321729,71138.0,71137.0,0.007]
[1717562216799,0.84955514,71138.0,71137.0,0.007]
[1717562217843,0.68898414,71138.0,71137.0,0.007]
[1717562218061,0.38898414,71138.0,71137.0,0.007]
[1717562218512,0.70898414,71138.0,71137.0,0.007]
[1717562218755,0.48898414,71138.0,71137.0,0.007]
[1717562219375,0.38898414,71138.0,71137.0,0.007]
[1717562219962,0.48898414,71138.0,71137.0,0.007]
[1717562220162,0.38898414,71138.0,71137.0,0.007]
[1717562220569,0.48898414,71138.0,71137.0,0.007]
[1717562220778,0.60898414,71138.0,71137.0,0.007]
[1717562220974,0.38898414,71138.0,71137.0,0.007]
[1717562221393,0.28898414,71138.0,71137.0,0.007]
[1717562221646,0.04988414,71138.0,71137.0,0.007]
[1717562221758,0.14988414,71138.0,71137.0,0.007]
[1717562222395,0.04988414,71138.0,71137.0,0.007]
[1717562222692,0.14988414,71138.0,71137.0,0.007]
[1717562223300,0.04988414,71138.0,71137.0,0.147573]
[1717562223899,0.04354629,71138.0,71137.0,0.147573]
[1717562224341,0.04354629,71138.0,71137.0,0.144573]
[1717562224452,0.04354629,71138.0,71137.0,0.140573]
[1717562224659,0.04354629,71138.0,71137.0,0.240573]
[1717562224865,0.04354629,71138.0,71137.0,0.332273]
[1717562225110,0.04354629,71138.0,71137.0,0.493673]
[1717562225321,0.04354629,71138.0,71137.0,0.5041423]
[1717562225524,0.04354629,71138.0,71137.0,0.92970823]
[1717562225789,0.04354629,71138.0,71137.0,0.91923893]
[1717562226159,0.04354629,71138.0,71137.0,0.97491844]
[1717562226533,0.04354629,71138.0,71137.0,1.21438593]
[1717562226742,0.04354629,71138.0,71137.0,1.27690748]
[1717562226945,0.04354629,71138.0,71137.0,1.21438593]
[1717562227152,0.04354629,71138.0,71137.0,1.20038593]
[1717562227366,0.04354629,71138.0,71137.0,1.30458238]
[1717562227532,0.04354629,71138.0,71137.0,1.20038593]
[1717562227943,0.04354629,71138.0,71137.0,1.21438593]
[1717562228318,0.04354629,71138.0,71137.0,1.30459156]
[1717562228878,0.0281471,71138.0,71137.0,1.29059156]
[1717562229051,0.0281471,71138.0,71137.0,1.18638593]
[1717562229265,0.0281471,71138.0,71137.0,1.21438593]
[1717562229388,0.0281471,71138.0,71137.0,1.20038593]
[1717562229592,0.0281471,71138.0,71137.0,1.18638593]
[1717562230002,0.0281471,71138.0,71137.0,1.20038593]
[1717562230412,0.0281471,71138.0,71137.0,1.18638593]
[1717562230811,0.0281471,71138.0,71137.0,1.20038593]
[1717562231061,0.0281471,71138.0,71137.0,1.21438593]
[1717562231276,0.0281471,71138.0,71137.0,1.20038593]
[1717562231638,0.0281471,71138.0,71137.0,1.21438593]
[1717562234138,0.05063942,71181.0,71150.0,0.19]
[1717562234334,0.05063942,71181.0,71145.0,0.2]
[1717562234335,0.00862,71181.0,71170.0,0.741308]
[1717562234490,0.00862,71181.0,71170.0,1.13664529]
[1717562235165,0.00862,71181.0,71170.0,1.41766229]
[1717562235366,0.00862,71181.0,71170.0,1.24070093]
[1717562235690,0.00862,71181.0,71170.0,1.25470093]
[1717562236083,0.00862,71181.0,71170.0,1.40810876]
[1717562236324,0.00862,71181.0,71170.0,1.68224548]
[1717562236535,0.00862,71181.0,71170.0,1.33206422]
[1717562236744,0.00862,71181.0,71170.0,1.41522547]
[1717562236943,0.00862,71181.0,71170.0,1.33206422]
[1717562237158,0.00862,71181.0,71170.0,1.40123364]
[1717562237415,0.00862,71181.0,71170.0,1.38040046]
[1717562237621,0.00862,71181.0,71170.0,1.31806422]
[1717562237825,0.00862,71181.0,71170.0,1.38039837]
[1717562238114,0.00862,71181.0,71170.0,1.62664097]
[1717562238361,0.00862,71181.0,71170.0,1.30406422]
[1717562238562,0.00862,71181.0,71170.0,1.65464097]
[1717562238892,0.00862,71181.0,71170.0,1.64064097]
[1717562239101,0.00862,71181.0,71170.0,1.62664097]
[1717562239303,0.00862,71181.0,71170.0,1.58508122]
[1717562239502,0.00862,71181.0,71170.0,1.59876093]
[1717562239914,1e-08,71171.0,71170.0,1.63309508]
[1717562240342,1e-08,71171.0,71170.0,1.58476093]
[1717562240945,1e-08,71171.0,71170.0,1.62625063]
[1717562241503,1e-08,71171.0,71170.0,1.64025063]
[1717562242247,1e-08,71171.0,71170.0,1.59876093]
[1717562245191,1e-08,71171.0,71170.0,1.58476093]
[1717562246028,0.00086001,71171.0,71170.0,1.61520712]
[1717562246474,0.00086001,71171.0,71170.0,1.44460712]
[1717562246668,0.15906001,71171.0,71170.0,0.71039012]
[1717562246878,0.15906001,71171.0,71170.0,0.31292693]
[1717562247776,0.15906001,71171.0,71170.0,0.29892693]
[1717562248200,0.15906001,71171.0,71170.0,0.39892693]
[1717562248408,0.15906001,71171.0,71170.0,0.69030319]
[1717562248746,0.15906001,71171.0,71170.0,0.70430319]
[1717562248948,0.17906001,71171.0,71170.0,0.54588426]
[1717562249148,0.15906001,71171.0,71170.0,0.254508]
[1717562249362,0.15906001,71171.0,71170.0,0.268508]
[1717562249776,0.15906001,71171.0,71170.0,0.55988718]
[1717562250765,0.15906001,71171.0,71170.0,0.58288718]
[1717562252285,0.00086001,71171.0,71170.0,1.00832311]
[1717562252493,0.00086001,71171.0,71170.0,1.08902311]
[1717562253138,0.16642,71181.0,71180.0,0.140488]
[1717562254146,0.00862,71181.0,71180.0,0.140488]
[1717562255145,0.00862,71181.0,71180.0,0.154488]
[1717562255395,0.00862,71181.0,71180.0,0.31290693]
[1717562255538,0.00862,71181.0,71180.0,0.41290693]
[1717562255745,0.00862,71181.0,71180.0,0.69388393]
[1717562256046,0.00862,71181.0,71180.0,0.98523544]
[1717562256308,0.00862,71181.0,71180.0,0.97123544]
[1717562257267,0.00862,71181.0,71180.0,0.95723544]
[1717562257472,0.00862,71181.0,71180.0,0.97123544]
[1717562257697,0.00862,71181.0,71180.0,0.98523544]
[1717562257900,0.00862,71181.0,71180.0,0.97123544]
[1717562258429,0.00862,71181.0,71180.0,0.98523544]
[1717562259393,0.00862,71181.0,71180.0,1.78588944]
[1717562260480,0.00862,71181.0,71180.0,1.77188944]
[1717562261777,0.00862,71181.0,71180.0,1.78588944]
[1717562262402,0.00016958,71189.0,71188.0,0.902365]
[1717562262599,0.00016958,71189.0,71188.0,1.85503544]
[1717562263792,0.00016958,71189.0,71188.0,1.86903544]
[1717562264211,0.00016958,71189.0,71188.0,1.68303544]
[1717562264389,0.00016958,71189.0,71188.0,1.88303544]
[1717562264583,0.00016958,71189.0,71188.0,2.16398144]
[1717562265038,0.040854,71199.0,71198.0,0.621359]
[1717562265241,0.040854,71199.0,71198.0,1.34204973]
[1717562265692,0.040854,71199.0,71198.0,1.42494973]
[1717562267214,0.040854,71199.0,71198.0,1.70585573]
[1717562267443,0.040854,71199.0,71198.0,1.86415573]
[1717562267726,0.040854,71199.0,71198.0,1.87815573]
[1717562267978,0.040854,71199.0,71198.0,1.89215573]
[1717562268189,0.040854,71199.0,71198.0,1.91295796]
[1717562268391,0.00510653,71199.0,71198.0,1.71125573]
[1717562268597,0.00510653,71199.0,71198.0,1.88185573]
[1717562269003,0.00510653,71199.0,71198.0,1.86785573]
[1717562269981,0.00510653,71199.0,71198.0,1.88185573]
[1717562270428,0.00510653,71199.0,71198.0,1.86753544]
[1717562270631,0.00510653,71199.0,71198.0,1.89553544]
[1717562270981,0.00510653,71199.0,71198.0,1.88153544]
[1717562271396,0.00510653,71199.0,71198.0,1.86753544]
[1717562271987,0.00862,71210.0,71207.0,0.621306]
[1717562272193,0.00862,71210.0,71207.0,1.85394744]
[1717562273226,0.00862,71210.0,71207.0,1.32767644]
[1717562273852,0.22,71220.0,71207.0,1.32767644]
[1717562273853,0.08084824,71243.0,71221.0,0.19]
[1717562274185,0.00862,71243.0,71229.0,0.93619493]
[1717562274310,0.00862,71243.0,71229.0,1.03619493]
[1717562274518,0.00862,71243.0,71229.0,1.60816055]
[1717562274923,0.00862,71243.0,71229.0,2.04116055]
[1717562275127,0.00862,71243.0,71229.0,2.08161854]
[1717562275367,6.02518374,71244.0,71242.0,0.2]
[1717562275590,6.02518374,71244.0,71243.0,1.19969355]
[1717562275835,6.02518374,71244.0,71243.0,0.95942254]
[1717562276035,6.02518374,71244.0,71243.0,0.99971917]
[1717562276189,6.02518374,71244.0,71243.0,0.71642254]
[1717562276404,6.02518374,71244.0,71243.0,0.67596455]
[1717562276607,6.02518374,71244.0,71243.0,0.38478293]
[1717562276810,6.02518374,71244.0,71243.0,0.6758624]
[1717562277035,6.02518374,71244.0,71243.0,0.38478293]
[1717562277769,6.02518374,71244.0,71243.0,0.39878293]
[1717562277973,6.02518374,71244.0,71243.0,0.41278293]
[1717562278173,6.02518374,71244.0,71243.0,0.39878293]
[1717562278374,6.02518374,71244.0,71243.0,0.25841893]
[1717562278754,6.02518374,71244.0,71243.0,0.27241893]
[1717562278937,6.02518374,71244.0,71243.0,0.25841893]
[1717562279547,6.02518374,71244.0,71243.0,0.39878293]
[1717562279972,6.02518374,71244.0,71243.0,0.47618293]
[1717562280369,6.02518374,71244.0,71243.0,0.76725612]
[1717562280784,6.02518374,71244.0,71243.0,0.68985612]
[1717562280992,6.02518374,71244.0,71243.0,0.70385612]
[1717562281199,6.02518374,71244.0,71243.0,0.71285612]
[1717562281606,6.02518374,71244.0,71243.0,0.72685612]
[1717562282013,6.02518374,71244.0,71243.0,0.69885612]
[1717562282262,6.02518374,71244.0,71243.0,0.72685612]
[1717562283241,6.02518374,71244.0,71243.0,0.7268534]
[1717562283450,6.02518374,71244.0,71243.0,0.42178293]